Workbook

Sheet ORÇAMENTO
A1: <---- NUMERAR SERVIÇOS PARA CPU | E1: Ministério do Desenvolvimento Regional
E2: Companhia de Desenvolvimento dos Vales do São Francisco e do Parnaíba
E3: 1ª Superintendência Regional
B5: OBRA: | C5: PAVIMENTAÇÃO ASFÁLTICA EM CBUQ DE VIAS EM COMUNIDADES RURAIS (COMUNIDADE MARIA PRETA, COMUNIDADE TIRIRICAL E DISTRITO DE SÃO NORBERTO - ENGENHEIRO NAVARRO / MG)
J6: BDI Serviços % : | L6: ='BDI SERV'!E26 -> 24.67
B7: DATA: | C7: SETEMBRO / 2025 | J7: BDI Diferenc. Serviços % : | L7: ='BDI FORN'!D31 -> 15
B8: PRAZO DE EXECUÇÃO: 180 DIAS | J8: BDI Fornecimentos % : | L8: ='BDI FORN'!D31 -> 15
B9: PLANILHA DE ORÇAMENTAÇÃO
B10: ITEM | C10: CÓDIGO | D10: FONTE | E10: DISCRIMINAÇÃO | F10: TIPO | G10: UNID. | H10: QUANT. | I10: VR.UNIT.S/BDI | J10: PR. UNIT.C/BDI | K10: C. TOT.S/BDI | L10: P. TOT.C/BDI
A11: A | B11: 1 | E11: SERVIÇOS PRELIMINARES | K11: =SUM(K12:K17) -> 177013.11 | L11: =SUM(L12:L17) -> 220664
A12: 1 | B12: 1.1 | C12: CPU.1 | D12: CODEVASF | E12: MOBILIZAÇÃO E DESMOBILIZAÇÃO | F12: SERV | G12: GL | H12: 1 | I12: =VLOOKUP(A12,'CPU-SERV'!A:K,11,0) -> 12629.18 | J12: =TRUNC(IF(F12="SERV",I12*(1+$L$6/100),IF(F12="SERV DIF",I12*(1+$L$7/100),IF(F12="FORN",I12*(1+$L$8/100),))),2) -> 15744.79 | K12: =TRUNC(H12*I12,2) -> 12629.18 | L12: =TRUNC(H12*J12,2) -> 15744.79
A13: 2 | B13: 1.2 | C13: CPU.2 | D13: CODEVASF | E13: ADMINISTRAÇÃO LOCAL | F13: SERV | G13: GL | H13: 1 | I13: =VLOOKUP(A13,'CPU-SERV'!A:K,11,0) -> 78327.67 | J13: =TRUNC(IF(F13="SERV",I13*(1+$L$6/100),IF(F13="SERV DIF",I13*(1+$L$7/100),IF(F13="FORN",I13*(1+$L$8/100),))),2) -> 97651.1 | K13: =TRUNC(H13*I13,2) -> 78327.67 | L13: =TRUNC(H13*J13,2) -> 97651.1
A14: 3 | B14: 1.3 | C14: CPU.3 | D14: CODEVASF | E14: CANTEIRO DE OBRAS | F14: SERV | G14: GL | H14: 3 | I14: =VLOOKUP(A14,'CPU-SERV'!A:K,11,0) -> 14467.74 | J14: =TRUNC(IF(F14="SERV",I14*(1+$L$6/100),IF(F14="SERV DIF",I14*(1+$L$7/100),IF(F14="FORN",I14*(1+$L$8/100),))),2) -> 18036.93 | K14: 43403.22 | L14: 54110.79
A15: 4 | B15: 1.4 | C15: 103689 | D15: SINAPI | E15: PLACA DE OBRA EM CHAPA DE AÇO GALVANIZADO | F15: SERV | G15: M2 | H15: 6 | I15: =VLOOKUP(A15,'CPU-SERV'!A:K,11,0) -> 547.64 | J15: =TRUNC(IF(F15="SERV",I15*(1+$L$6/100),IF(F15="SERV DIF",I15*(1+$L$7/100),IF(F15="FORN",I15*(1+$L$8/100),))),2) -> 682.74 | K15: 3285.84 | L15: 4096.44
A16: 5 | B16: 1.5 | C16: CPU.4 | D16: CODEVASF | E16: VEÍCULO PARA A FISCALIZAÇÃO, MÁXIMO 02 ANOS DE USO OU 50.000KM, PREFERENCIALMENTE NA COR BRANCA, COM IDENTIFICAÇÃO CONFORME ESPECIFICAÇÕES DA CODEVASF, INCLUSIVE COMBUSTÍVEL, MANUTENÇÃO, SEGURO E IMPOSTOS - CONFORME ESPECIFICAÇÕES | F16: SERV | G16: MÊS | H16: 8 | I16: =VLOOKUP(A16,'CPU-SERV'!A:K,11,0) -> 4264.15 | J16: =TRUNC(IF(F16="SERV",I16*(1+$L$6/100),IF(F16="SERV DIF",I16*(1+$L$7/100),IF(F16="FORN",I16*(1+$L$8/100),))),2) -> 5316.11 | K16: 34113.2 | L16: 42528.88
A17: 6 | B17: 1.6 | C17: 78472 | D17: SINAPI | E17: SERVIÇOS TOPOGRÁFICOS PARA PAVIMENTAÇÃO, INCLUSIVE LEVANTAMENTO PLANIALTIMÉTRICO CADASTRAL, GERAÇÃO DE NOTAS DE SERVIÇO, SEÇÕES TRANSVERSAIS E GREIDE, ESTAQUEAMENTO E ACOMPANHAMENTO EXECUTIVO | F17: SERV | G17: M2 | H17: 14200 | I17: =VLOOKUP(A17,'CPU-SERV'!A:K,11,0) -> 0.37 | J17: =TRUNC(IF(F17="SERV",I17*(1+$L$6/100),IF(F17="SERV DIF",I17*(1+$L$7/100),IF(F17="FORN",I17*(1+$L$8/100),))),2) -> 0.46 | K17: 5254 | L17: 6532
A18: B | B18: 2 | E18: TERRAPLANAGEM E PAVIMENTAÇÃO | K18: =SUM(K19:K24) -> 250421.5 | L18: =SUM(L19:L24) -> 311973.9
A19: 7 | B19: 2.1 | C19: 5502140 | D19: SICRO | E19: ESCAVAÇÃO, CARGA E TRANSPORTE DE MATERIAL DE 1ª CATEGORIA - DMT 1.000 A 1.200M, CAMINHO DE SERVIÇO EM REVESTIMENTO PRIMÁRIO | F19: SERV | G19: M3 | H19: 4260 | I19: =VLOOKUP(A19,'CPU-SERV'!A:K,11,0) -> 6.89 | J19: =TRUNC(IF(F19="SERV",I19*(1+$L$6/100),IF(F19="SERV DIF",I19*(1+$L$7/100),IF(F19="FORN",I19*(1+$L$8/100),))),2) -> 8.58 | K19: =TRUNC(H19*I19,2) -> 29351.4 | L19: =TRUNC(H19*J19,2) -> 36550.8
A20: 9 | B20: 2.3 | C20: 4011209 | D20: SICRO | E20: REGULARIZAÇÃO DO SUBLEITO - 100% PROCTOR INTERMEDIÁRIO | F20: SERV | G20: M2 | H20: 14200 | I20: =VLOOKUP(A20,'CPU-SERV'!A:K,11,0) -> 1.55 | J20: =TRUNC(IF(F20="SERV",I20*(1+$L$6/100),IF(F20="SERV DIF",I20*(1+$L$7/100),IF(F20="FORN",I20*(1+$L$8/100),))),2) -> 1.93 | K20: 22010 | L20: =TRUNC(H20*J20,2) -> 27406
A21: 10 | B21: 2.4 | C21: 4011219 | D21: SICRO | E21: EXECUÇÃO E COMPACTAÇÃO DE BASE E OU SUB BASE PARA PAVIMENTAÇÃO COM SOLO ESTABILIZADO GRANULOMETRICAMENTE SEM MISTURA COM MATERIAL DE JAZIDA - 100% PROCTOR MODIFICADO | F21: SERV | G21: M3 | H21: 2130 | I21: =VLOOKUP(A21,'CPU-SERV'!A:K,11,0) -> 14.79 | J21: =TRUNC(IF(F21="SERV",I21*(1+$L$6/100),IF(F21="SERV DIF",I21*(1+$L$7/100),IF(F21="FORN",I21*(1+$L$8/100),))),2) -> 18.43 | K21: 31502.7 | L21: 39255.9
A22: 12 | B22: 2.5 | C22: 4011352 | D22: SICRO | E22: IMPRIMAÇÃO COM EMULSÃO ASFÁLTICA (EAI) | F22: SERV | G22: M2 | H22: 14200 | I22: =VLOOKUP(A22,'CPU-SERV'!A:K,11,0) -> 0.41 | J22: =TRUNC(IF(F22="SERV",I22*(1+$L$6/100),IF(F22="SERV DIF",I22*(1+$L$7/100),IF(F22="FORN",I22*(1+$L$8/100),))),2) -> 0.51 | K22: 5822 | L22: 7242
A23: 13 | B23: 2.6 | C23: 4011353 | D23: SICRO | E23: PINTURA DE LIGAÇÃO COM EMULSÃO ASFÁLTICA RR-1C | F23: SERV | G23: M2 | H23: 11900 | I23: =VLOOKUP(A23,'CPU-SERV'!A:K,11,0) -> 0.28 | J23: =TRUNC(IF(F23="SERV",I23*(1+$L$6/100),IF(F23="SERV DIF",I23*(1+$L$7/100),IF(F23="FORN",I23*(1+$L$8/100),))),2) -> 0.34 | K23: 3332 | L23: 4046
A24: 14 | B24: 2.7 | C24: 4011463 | D24: SICRO | E24: EXECUÇÃO DE PAVIMENTO COM APLICAÇÃO DE CONCRETO ASFÁLTICO USINADO A QUENTE (CBUQ), CAMADA DE ROLAMENTO - EXCLUSIVE TRANSPORTE | F24: SERV | G24: T | H24: 860 | I24: =VLOOKUP(A24,'CPU-SERV'!A:K,11,0) -> 184.19 | J24: =TRUNC(IF(F24="SERV",I24*(1+$L$6/100),IF(F24="SERV DIF",I24*(1+$L$7/100),IF(F24="FORN",I24*(1+$L$8/100),))),2) -> 229.62 | K24: 158403.4 | L24: 197473.2
A25: C | B25: 3 | E25: TRANSPORTE DE MATERIAIS | K25: =SUM(K26:K30) -> 168700 | L25: =SUM(L26:L30) -> 209160
A26: 15 | B26: 3.1 | C26: 5915321 | D26: SICRO | E26: TRANSPORTE COM CAMINHÃO BASCULANTE, EM RODOVIA PAVIMENTADA | F26: SERV | G26: TXKM | H26: 52000 | I26: =VLOOKUP(A26,'CPU-SERV'!A:K,11,0) -> 0.66 | J26: =TRUNC(IF(F26="SERV",I26*(1+$L$6/100),IF(F26="SERV DIF",I26*(1+$L$7/100),IF(F26="FORN",I26*(1+$L$8/100),))),2) -> 0.82 | K26: =TRUNC(H26*I26,2) -> 34320 | L26: =TRUNC(H26*J26,2) -> 42640
A27: 16 | B27: 3.2 | C27: 5915320 | D27: SICRO | E27: TRANSPORTE COM CAMINHÃO BASCULANTE, RODOVIA EM REVESTIMENTO PRIMÁRIO | F27: SERV | G27: TXKM | H27: 90000 | I27: =VLOOKUP(A27,'CPU-SERV'!A:K,11,0) -> 0.7 | J27: =TRUNC(IF(F27="SERV",I27*(1+$L$6/100),IF(F27="SERV DIF",I27*(1+$L$7/100),IF(F27="FORN",I27*(1+$L$8/100),))),2) -> 0.87 | K27: 63000 | L27: 78300
A28: 17 | B28: 3.3 | C28: 5914434 | D28: SICRO | E28: TRANSPORTE COM CAMINHÃO CARROCERIA 9T, MATERIAIS DIVERSOS | F28: SERV | G28: TXKM | H28: 12000 | I28: =VLOOKUP(A28,'CPU-SERV'!A:K,11,0) -> 0.79 | J28: =TRUNC(IF(F28="SERV",I28*(1+$L$6/100),IF(F28="SERV DIF",I28*(1+$L$7/100),IF(F28="FORN",I28*(1+$L$8/100),))),2) -> 0.98 | K28: 9480 | L28: 11760
A29: 18 | B29: 3.4 | C29: 5914612 | D29: SICRO | E29: TRANSPORTE DE MASSA ASFÁLTICA COM CAMINHÃO BASCULANTE COM CAÇAMBA TÉRMICA | F29: SERV | G29: TXKM | H29: 72000 | I29: =VLOOKUP(A29,'CPU-SERV'!A:K,11,0) -> 0.81 | J29: =TRUNC(IF(F29="SERV",I29*(1+$L$6/100),IF(F29="SERV DIF",I29*(1+$L$7/100),IF(F29="FORN",I29*(1+$L$8/100),))),2) -> 1 | K29: 58320 | L29: 72000
A30: 20 | B30: 3.5 | C30: 5914622 | D30: SICRO | E30: TRANSPORTE COM CAMINHÃO TANQUE DE TRANSPORTE DE MATERIAL ASFÁLTICO DE 30000 L | F30: SERV | G30: TXKM | H30: 2000 | I30: =VLOOKUP(A30,'CPU-SERV'!A:K,11,0) -> 1.79 | J30: =TRUNC(IF(F30="SERV",I30*(1+$L$6/100),IF(F30="SERV DIF",I30*(1+$L$7/100),IF(F30="FORN",I30*(1+$L$8/100),))),2) -> 2.23 | K30: 3580 | L30: 4460
A31: E | B31: 4 | E31: DRENAGEM E OBRAS COMPLEMENTARES | K31: =SUM(K32:K35) -> 247743.2 | L31: =SUM(L32:L35) -> 308821.45
A32: 21 | B32: 4.1 | C32: 94273 | D32: SINAPI | E32: ASSENTAMENTO DE GUIA (MEIO-FIO) PRÉ-MOLDADO DE CONCRETO - 80X10X30 CM (COMPRIMENTO X BASE SUPERIOR X ALTURA) - USO VIÁRIO | F32: SERV | G32: M | H32: 3100 | I32: =VLOOKUP(A32,'CPU-SERV'!A:K,11,0) -> 50.17 | J32: =TRUNC(IF(F32="SERV",I32*(1+$L$6/100),IF(F32="SERV DIF",I32*(1+$L$7/100),IF(F32="FORN",I32*(1+$L$8/100),))),2) -> 62.54 | K32: =TRUNC(H32*I32,2) -> 155527 | L32: =TRUNC(H32*J32,2) -> 193874
A33: 23 | B33: 4.2 | C33: 94287a | D33: SINAPI | E33: EXECUÇÃO DE SARJETA EM CONCRETO USINADO, MOLDADO IN LOCO - 30CM DE BASE X 5CM DE ALTURA | F33: SERV | G33: M | H33: 3000 | I33: =VLOOKUP(A33,'CPU-SERV'!A:K,11,0) -> 23.9 | J33: =TRUNC(IF(F33="SERV",I33*(1+$L$6/100),IF(F33="SERV DIF",I33*(1+$L$7/100),IF(F33="FORN",I33*(1+$L$8/100),))),2) -> 29.79 | K33: 71700 | L33: 89370
A34: 24 | B34: 4.3 | C34: 2003107 | D34: SICRO | E34: ENTRADA PARA DESCIDA D'ÁGUA, TIPO EDA 03 - AREIA E BRITA COMERCIAIS | F34: SERV | G34: UN. | H34: 5 | I34: =VLOOKUP(A34,'CPU-SERV'!A:K,11,0) -> 180.68 | J34: =TRUNC(IF(F34="SERV",I34*(1+$L$6/100),IF(F34="SERV DIF",I34*(1+$L$7/100),IF(F34="FORN",I34*(1+$L$8/100),))),2) -> 225.25 | K34: =TRUNC(H34*I34,2) -> 903.4 | L34: =TRUNC(H34*J34,2) -> 1126.25
A35: 49 | B35: 4.5 | C35: 5213401 | D35: SICRO | E35: PINTURA DE EIXO VIÁRIO SOBRE ASFALTO COM TINTA RETRORREFLETIVA A BASE DE RESINA ACRÍLICA COM MICROESFERAS DE VIDRO, APLICAÇÃO MECÂNICA COM DEMARCADORA AUTOPROPELIDA | F35: SERV | G35: M2 | H35: 720 | I35: =VLOOKUP(A35,'CPU-SERV'!A:K,11,0) -> 27.24 | J35: =TRUNC(IF(F35="SERV",I35*(1+$L$6/100),IF(F35="SERV DIF",I35*(1+$L$7/100),IF(F35="FORN",I35*(1+$L$8/100),))),2) -> 33.96 | K35: 19612.8 | L35: 24451.2
A36: F | B36: 5 | E36: FORNECIMENTOS - MATERIAL ASFÁLTICO (BDI DIFERENCIADO) | K36: =SUM(K37:K42) -> 328674.03 | L36: =SUM(L37:L42) -> 377974.94
A37: F1 | B37: 5.1 | C37: CPU.5 | D37: CODEVASF | E37: AQUISIÇÃO DE EMULSÃO ASFÁLTICA PARA IMPRIMAÇÃO (EAI) - EXCLUSIVE TRANSPORTE | F37: FORN | G37: T | H37: 19 | I37: =VLOOKUP(A37,'CPU-FORNEC'!A:J,9,0) -> 2732.37 | J37: =TRUNC(IF(F37="SERV",I37*(1+$L$6/100),IF(F37="SERV DIF",I37*(1+$L$7/100),IF(F37="FORN",I37*(1+$L$8/100),))),2) -> 3142.22 | K37: =TRUNC(H37*I37,2) -> 51915.03 | L37: =TRUNC(H37*J37,2) -> 59702.18
A38: F2 | B38: 5.2 | C38: CPU.6 | D38: CODEVASF | E38: TRANSPORTE DE EMULSÃO ASFÁLTICA PARA IMPRIMAÇÃO (EAI) | F38: SERV DIF | G38: T | H38: 19 | I38: =VLOOKUP(A38,'CPU-FORNEC'!A:J,9,0) -> 341.88 | J38: =TRUNC(IF(F38="SERV",I38*(1+$L$6/100),IF(F38="SERV DIF",I38*(1+$L$7/100),IF(F38="FORN",I38*(1+$L$8/100),))),2) -> 393.16 | K38: 6495.72 | L38: 7470.04
A39: F3 | B39: 5.3 | C39: CPU.7 | D39: CODEVASF | E39: AQUISIÇÃO DE EMULSAO ASFALTICA CATIONICA RR-1C - EXCLUSIVE TRANSPORTE | F39: FORN | G39: T | H39: 5.4 | I39: =VLOOKUP(A39,'CPU-FORNEC'!A:J,9,0) -> 3375.89 | J39: =TRUNC(IF(F39="SERV",I39*(1+$L$6/100),IF(F39="SERV DIF",I39*(1+$L$7/100),IF(F39="FORN",I39*(1+$L$8/100),))),2) -> 3882.27 | K39: 18229.8 | L39: 20964.25
A40: F4 | B40: 5.4 | C40: CPU.8 | D40: CODEVASF | E40: TRANSPORTE DE EMULSÃO ASFÁLTICA CATIONICA RR-1C | F40: SERV DIF | G40: T | H40: 5.4 | I40: =VLOOKUP(A40,'CPU-FORNEC'!A:J,9,0) -> 435.8 | J40: =TRUNC(IF(F40="SERV",I40*(1+$L$6/100),IF(F40="SERV DIF",I40*(1+$L$7/100),IF(F40="FORN",I40*(1+$L$8/100),))),2) -> 501.17 | K40: 2353.32 | L40: 2706.31
A41: F5 | B41: 5.5 | C41: CPU.9 | D41: CODEVASF | E41: AQUISIÇÃO DE CONCRETO ASFÁLTICO DE PETRÓLEO - CAP 50/70 - EXCLUSIVE TRANSPORTE | F41: FORN | G41: T | H41: 48 | I41: =VLOOKUP(A41,'CPU-FORNEC'!A:J,9,0) -> 4511.6 | J41: =TRUNC(IF(F41="SERV",I41*(1+$L$6/100),IF(F41="SERV DIF",I41*(1+$L$7/100),IF(F41="FORN",I41*(1+$L$8/100),))),2) -> 5188.34 | K41: 216556.8 | L41: 249040.32
A42: F6 | B42: 5.6 | C42: CPU.10 | D42: CODEVASF | E42: TRANSPORTE DE CONCRETO ASFÁLTICO DE PETRÓLEO - CAP 50/70 | F42: SERV DIF | G42: T | H42: 48 | I42: =VLOOKUP(A42,'CPU-FORNEC'!A:J,9,0) -> 690.07 | J42: =TRUNC(IF(F42="SERV",I42*(1+$L$6/100),IF(F42="SERV DIF",I42*(1+$L$7/100),IF(F42="FORN",I42*(1+$L$8/100),))),2) -> 793.58 | K42: 33123.36 | L42: 38091.84
B43: TOTAL GERAL DA OBRA COM BDI | K43: =SUM(K11,K18,K25,K31,K36) -> 1172551.84 | L43: =SUM(L11,L18,L25,L31,L36) -> 1428594.29

Sheet CPU-SERV
A1: 1 | B1: 1ª/GRD | K1: =J40 -> 12629.18 | L1: Minas Gerais
B2: OBRA: | C2: PAVIMENTAÇÃO ASFÁLTICA EM CBUQ DE VIAS EM COMUNIDADES RURAIS (COMUNIDADE MARIA PRETA, COMUNIDADE TIRIRICAL E DISTRITO DE SÃO NORBERTO - ENGENHEIRO NAVARRO / MG) | L2: Abril/2025
B3: Custo Unitário de Referência | E3: Minas Gerais
E4: Abril/2025 | H4: Produção da equipe | I4: 0.5 | J4: =VLOOKUP(A1,ORÇAMENTO!$A$11:$L$43,7,1) -> GL
B5: CPU.1 | C5: MOBILIZAÇÃO E DESMOBILIZAÇÃO | I5: Valores em reais (R$)
B6: A - EQUIPAMENTOS | D6: Quantidade | E6: Utilização | G6: Custo Horário | J6: Custo
E7: Operativa | F7: Improdutiva | G7: Produtivo | H7: Improdutivo | J7: Horário Total
B8: E9687 | C8: Caminhão carroceria com capacidade de 5 t - 120 kW | D8: 8 | E8: 0.6 | F8: 0.4 | G8: 154.8269 | H8: 59.7199 | J8: =D8*(E8*G8+F8*H8) -> 934.2728
B9: E9571 | C9: Caminhão tanque com capacidade de 10.000 l - 188 kW | D9: 2 | E9: 1 | F9: 0 | G9: 332.8408 | H9: 83.1893 | J9: =D9*(E9*G9+F9*H9) -> 665.6816
B10: E9509 | C10: Caminhão tanque distribuidor de asfalto com capacidade de 6.000 l - 7 kW/136 kW | D10: 2 | E10: 1 | F10: 0 | G10: 267.5193 | H10: 74.6445 | J10: 535.0386
B11: E9514 | C11: Distribuidor de agregados sobre pneus autopropelido - 130 kW | D11: 2 | E11: 1 | F11: 0 | G11: 293.4142 | H11: 107.0603 | J11: 586.8284
B12: E9575 | C12: Caminhão basculante com caçamba estanque com capacidade de 14 m³ - 210 kW | D12: 4 | E12: 1 | F12: 0 | G12: 314.1607 | H12: 91.2661 | J12: =D12*(E12*G12+F12*H12) -> 1256.6428
H13: Custo horário total de equipamentos | J13: =SUM(J8:J12) -> 3978.4642
B14: B - MÃO DE OBRA | D14: Quantidade | E14: Unidade | G14: Custo Horário | H14: Custo Horário Total
B15: P9824 | C15: Servente | D15: 8 | E15: h | G15: 21.4354 | J15: =D15*G15 -> 171.4832
J16: =D16*G16 -> 0
D17: Custo horário total de mão de obra | J17: =SUM(J15:J16) -> 171.4832
D18: Custo horário total de execução | J18: =J13+J17 -> 4149.9474
D19: Custo unitário de execução | J19: =J18/I4 -> 8299.8948
H20: Custo do FIC | J20: 0
H21: Custo do FIT | J21: 0
B22: C - MATERIAL | D22: Quantidade | E22: Unidade | G22: Preço Unitário | H22: Custo Unitário
B23: - | C23: 0 | E23: - | G23: 0 | J23: =D23*G23 -> 0 | L23: =VLOOKUP(A1,ORÇAMENTO!A$12:L$43,8,FALSE) -> 1 | M23: =J23*L23 -> 0
B24: - | C24: 0 | E24: - | G24: 0 | J24: =D24*G24 -> 0 | L24: =VLOOKUP(A1,ORÇAMENTO!A$12:L$43,8,FALSE) -> 1 | M24: =J24*L24 -> 0
D25: Custo unitário total de material | J25: =SUM(J23:J24) -> 0
B26: D - ATIVIDADES AUXILIARES | D26: Quantidade | E26: Unidade | G26: Custo Unitário | H26: Custo Unitário
B27: 5914640 | C27: Transporte com cavalo mecânico com semirreboque com capacidade de 32 t - rodovia pavimentada | D27: 7595.25 | E27: tkm | G27: 0.57 | J27: =D27*G27 -> 4329.2925
B28: - | C28: 0 | D28: 0 | E28: 0 | G28: 0 | J28: =D28*G28 -> 0
D29: Custo total de atividades auxiliares | J29: =SUM(J27:J28) -> 4329.2925
H30: Subtotal | J30: =J19+J25+J29+J20+J21 -> 12629.1873
B31: E - TEMPO FIXO | D31: Código | E31: Quantidade | F31: Unidade | H31: Custo Unitário | I31: Custo Unitário
B32: - | C32: 0 | D32: - | F32: 0 | H32: 0 | J32: =ROUNDDOWN(E32*H32,4) -> 0
B33: - | C33: 0 | D33: - | F33: 0 | H33: 0 | J33: =ROUNDDOWN(E33*H33,4) -> 0
D34: Custo unitário total de tempo fixo | J34: =SUM(J32:J33) -> 0
B35: F - MOMENTO DE TRANSPORTE | D35: Quantidade | E35: Unidade | F35: DMT | J35: Custo Unitário
F36: LN | G36: RP | H36: P
B37: - | C37: 0 | E37: tkm
B38: - | C38: 0 | E38: tkm
D39: Custo unitário total de transporte
F40: Custo unitário direto total | J40: =TRUNC(J30+J34,2) -> 12629.18
B41: Obs.
A43: =A1+1 -> 2 | B43: 1ª/GRD | K43: =J84 -> 78327.67
B44: OBRA: | C44: PAVIMENTAÇÃO ASFÁLTICA EM CBUQ DE VIAS EM COMUNIDADES RURAIS (COMUNIDADE MARIA PRETA, COMUNIDADE TIRIRICAL E DISTRITO DE SÃO NORBERTO - ENGENHEIRO NAVARRO / MG)
B45: Custo Unitário de Referência | E45: Minas Gerais
E46: Abril/2025 | H46: Produção da equipe | I46: 0.2 | J46: =VLOOKUP(A43,ORÇAMENTO!$A$11:$L$43,7,1) -> GL
B47: CPU.2 | C47: ADMINISTRAÇÃO LOCAL | I47: Valores em reais (R$)
B48: A - EQUIPAMENTOS | D48: Quantidade | E48: Utilização | G48: Custo Horário | J48: Custo
E49: Operativa | F49: Improdutiva | G49: Produtivo | H49: Improdutivo | J49: Horário Total
B50: - | C50: 0 | G50: 0 | H50: 0 | J50: =D50*(E50*G50+F50*H50) -> 0
B51: - | C51: 0 | G51: 0 | H51: 0 | J51: =D51*(E51*G51+F51*H51) -> 0
H52: Custo horário total de equipamentos | J52: =SUM(J50:J51) -> 0
B53: B - MÃO DE OBRA | D53: Quantidade | E53: Unidade | G53: Custo Horário | H53: Custo Horário Total
B54: P9812 | C54: Engenheiro | D54: 0.19837788 | E54: mês | G54: 26402.7353 | J54: =D54*G54 -> 5237.718654
B55: P9875 | C55: Encarregado de turma | D55: 1 | E55: mês | G55: 6186.1723 | J55: =D55*G55 -> 6186.1723
B56: P9876 | C56: Técnico de segurança do trabalho | D56: 0.25 | E56: mês | G56: 5978.5158 | J56: 1494.62895
B57: P9858 | C57: Laboratorista | D57: 0.25 | E57: mês | G57: 4843.344225 | J57: 1210.836056
B58: P9806 | C58: Auxiliar administrativo | D58: 0.25 | E58: mês | G58: 3423.598425 | J58: 855.8996062
D59: Custo horário total de mão de obra | J59: =SUM(J54:J58) -> 14985.25557
D60: Custo horário total de execução | J60: =J52+J59 -> 14985.25557
D61: Custo unitário de execução | J61: =J60/I46 -> 74926.27783
H62: Custo do FIC | J62: 0
H63: Custo do FIT | J63: -
B64: C - MATERIAL | D64: Quantidade | E64: Unidade | G64: Preço Unitário | H64: Custo Unitário
B65: - | C65: 0 | D65: 0 | E65: - | G65: 0 | J65: =D65*G65 -> 0
B66: - | C66: 0 | D66: 0 | E66: - | G66: 0 | J66: 0
D67: Custo unitário total de material | J67: =SUM(J65:J66) -> 0
B68: D - ATIVIDADES AUXILIARES | D68: Quantidade | E68: Unidade | G68: Custo Unitário | H68: Custo Unitário
B69: 14250 | C69: Energia Elétrica | D69: 360 | E69: kwh | G69: 1.14 | J69: =D69*G69 -> 410.4
B70: 44480 | C70: Tarifa A - Água e Esgoto | D70: 24 | E70: m³ | G70: 21.57 | J70: =D70*G70 -> 517.68
B71: 5212560 | C71: Placa de advertência para sinalização de obras montada em suporte metálico móvel, lado 1,00 m - utilização de 600 ciclos - fornecimento, 01 implantação e 01 retirada diária | D71: 528 | E71: un.dia | G71: 3.89 | J71: =D71*G71 -> 2053.92
B72: Cotação | C72: Telefone | D72: 6 | E72: mês | G72: 69.9 | J72: =D72*G72 -> 419.4
D73: Custo total de atividades auxiliares | J73: =SUM(J69:J72) -> 3401.4
H74: Subtotal | J74: =J61+J67+J73 -> 78327.67783
B75: E - TEMPO FIXO | D75: Código | E75: Quantidade | F75: Unidade | H75: Custo Unitário | I75: Custo Unitário
B76: - | C76: 0 | D76: - | E76: 0 | F76: t | H76: 0 | J76: =ROUNDDOWN(E76*H76,4) -> 0
B77: - | C77: 0 | D77: - | E77: 0 | F77: t | H77: 0 | J77: =ROUNDDOWN(E77*H77,4) -> 0
D78: Custo unitário total de tempo fixo | J78: =SUM(J76:J77) -> 0
B79: F - MOMENTO DE TRANSPORTE | D79: Quantidade | E79: Unidade | F79: DMT | J79: Custo Unitário
F80: LN | G80: RP | H80: P
B81: - | C81: 0 | E81: tkm
B82: - | C82: 0 | E82: tkm
D83: Custo unitário total de transporte
F84: Custo unitário direto total | J84: =TRUNC(J74+J78,2) -> 78327.67
B85: Obs.
A87: =A43+1 -> 3 | B87: 1ª/GRD | K87: =J123 -> 14467.74
B88: OBRA: | C88: PAVIMENTAÇÃO ASFÁLTICA EM CBUQ DE VIAS EM COMUNIDADES RURAIS (COMUNIDADE MARIA PRETA, COMUNIDADE TIRIRICAL E DISTRITO DE SÃO NORBERTO - ENGENHEIRO NAVARRO / MG)
B89: Custo Unitário de Referência | E89: Minas Gerais
E90: Abril/2025 | H90: Produção da equipe | I90: 1 | J90: =VLOOKUP(A87,ORÇAMENTO!$A$11:$L$43,7,1) -> GL
B91: CPU.3 | C91: CANTEIRO DE OBRAS | I91: Valores em reais (R$)
B92: A - EQUIPAMENTOS | D92: Quantidade | E92: Utilização | G92: Custo Horário | J92: Custo
E93: Operativa | F93: Improdutiva | G93: Produtivo | H93: Improdutivo | J93: Horário Total
B94: - | C94: 0 | G94: 0 | H94: 0 | J94: =D94*(E94*G94+F94*H94) -> 0
B95: - | C95: 0 | G95: 0 | H95: 0 | J95: =D95*(E95*G95+F95*H95) -> 0
H96: Custo horário total de equipamentos | J96: =SUM(J94:J95) -> 0
B97: B - MÃO DE OBRA | D97: Quantidade | E97: Unidade | G97: Custo Horário | H97: Custo Horário Total
B98: P9824 | C98: Servente | D98: 8 | E98: h | G98: 21.4354 | J98: =D98*G98 -> 171.4832
B99: P9808 | C99: Carpinteiro | D99: 8 | E99: h | G99: 26.8814 | J99: =D99*G99 -> 215.0512
D100: Custo horário total de mão de obra | J100: =SUM(J98:J99) -> 386.5344
D101: Custo horário total de execução | J101: =J96+J100 -> 386.5344
D102: Custo unitário de execução | J102: =J101/I90 -> 386.5344
H103: Custo do FIC | J103: -
H104: Custo do FIT | J104: -
B105: C - MATERIAL | D105: Quantidade | E105: Unidade | G105: Preço Unitário | H105: Custo Unitário
B106: M0053 | C106: Tela plástica em polipropileno na cor laranja para tapume - L = 1,2 m | D106: 100 | E106: m | G106: 1.7621 | J106: =D106*G106 -> 176.21
B107: - | C107: 0 | D107: 0 | E107: - | G107: 0 | J107: =D107*G107 -> 0
D108: Custo unitário total de material | J108: =SUM(J106:J107) -> 176.21
B109: D - ATIVIDADES AUXILIARES | D109: Quantidade | E109: Unidade | G109: Custo Unitário | H109: Custo Unitário
B110: 10775 | C110: Locação de container 2,30 X 6,00 m, alt. 2,50 m, com 1 sanitário, para escritório, completo, sem divisórias internas | D110: 6 | E110: mês | G110: 1030 | J110: =D110*G110 -> 6180
B111: 10779 | C111: Locação de container 2,30 X 4,30 m, alt. 2,50 M, p/ sanitário, c/ 5 bacias, 1 lavatório e 4 mictórios | D111: 6 | E111: mês | G111: 1287.5 | J111: =D111*G111 -> 7725
D112: Custo total de atividades auxiliares | J112: =SUM(J110:J111) -> 13905
H113: Subtotal | J113: =J102+J108+J112 -> 14467.7444
B114: E - TEMPO FIXO | D114: Código | E114: Quantidade | F114: Unidade | H114: Custo Unitário | I114: Custo Unitário
B115: - | C115: 0 | D115: - | E115: 0 | F115: t | H115: 0 | J115: =ROUNDDOWN(E115*H115,4) -> 0
B116: - | C116: 0 | D116: - | E116: 0 | F116: t | H116: 0 | J116: =ROUNDDOWN(E116*H116,4) -> 0
D117: Custo unitário total de tempo fixo | J117: =SUM(J115:J116) -> 0
B118: F - MOMENTO DE TRANSPORTE | D118: Quantidade | E118: Unidade | F118: DMT | J118: Custo Unitário
F119: LN | G119: RP | H119: P
B120: - | C120: 0 | D120: 0 | E120: tkm
B121: - | C121: 0 | D121: 0 | E121: tkm
D122: Custo unitário total de transporte
F123: Custo unitário direto total | J123: =TRUNC(J113+J117,2) -> 14467.74
B124: Obs.
A126: =A87+1 -> 4 | B126: 1ª/GRD | K126: =J164 -> 547.64
B127: OBRA: | C127: PAVIMENTAÇÃO ASFÁLTICA EM CBUQ DE VIAS EM COMUNIDADES RURAIS (COMUNIDADE MARIA PRETA, COMUNIDADE TIRIRICAL E DISTRITO DE SÃO NORBERTO - ENGENHEIRO NAVARRO / MG)
B128: Custo Unitário de Referência | E128: Minas Gerais
E129: Abril/2025 | H129: Produção da equipe | I129: 1 | J129: =VLOOKUP(A126,ORÇAMENTO!$A$11:$L$43,7,1) -> M2
B130: 103689 | C130: PLACA DE OBRA EM CHAPA DE AÇO GALVANIZADO | I130: Valores em reais (R$)
B131: A - EQUIPAMENTOS | D131: Quantidade | E131: Utilização | G131: Custo Horário | J131: Custo
E132: Operativa | F132: Improdutiva | G132: Produtivo | H132: Improdutivo | J132: Horário Total
B133: - | C133: 0 | G133: 0 | H133: 0 | J133: =D133*(E133*G133+F133*H133) -> 0
B134: - | C134: 0 | G134: 0 | H134: 0 | J134: =D134*(E134*G134+F134*H134) -> 0
H135: Custo horário total de equipamentos | J135: =SUM(J133:J134) -> 0
B136: B - MÃO DE OBRA | D136: Quantidade | E136: Unidade | G136: Custo Horário | H136: Custo Horário Total
B137: P9824 | C137: Servente | D137: 1.1186 | E137: h | G137: 21.4354 | J137: =D137*G137 -> 23.97763844
B138: P9808 | C138: Carpinteiro | D138: 0.3729 | E138: h | G138: 26.8814 | J138: =D138*G138 -> 10.02407406
D139: Custo horário total de mão de obra | J139: =SUM(J137:J138) -> 34.0017125
D140: Custo horário total de execução | J140: =J135+J139 -> 34.0017125
D141: Custo unitário de execução | J141: =J140/I129 -> 34.0017125
H142: Custo do FIC | J142: -
H143: Custo do FIT | J143: -
B144: C - MATERIAL | D144: Quantidade | E144: Unidade | G144: Preço Unitário | H144: Custo Unitário
B145: M1358 | C145: Sarrafo em madeira de terceira - E = 2,5 cm e L = 5 cm | D145: 6.4166 | E145: m | G145: 2.0291 | J145: =D145*G145 -> 13.01992306
B146: M1205 | C146: Prego de ferro | D146: 0.0245 | E146: kg | G146: 16.7718 | J146: =D146*G146 -> 0.4109091
B147: M0998 | C147: Madeira estrutural de eucalipto | D147: 0.022608 | E147: m³ | G147: 2685.3184 | J147: =D147*G147 -> 60.70967839
B148: 4813 | C148: Placa de obra (para construção civil) em chapa galvanizada *N. 22*, adesivada, de *2,4 X 1,2* m (sem postes para fixação) | D148: 1 | E148: m² | G148: 439.5 | H148: (SINAPI) | J148: 439.5
D149: Custo unitário total de material | J149: =SUM(J145:J148) -> 513.6405105
B150: D - ATIVIDADES AUXILIARES | D150: Quantidade | E150: Unidade | G150: Custo Unitário | H150: Custo Unitário
B151: - | C151: 0 | D151: 0 | E151: 0 | G151: 0 | J151: =D151*G151 -> 0
B152: - | C152: 0 | D152: 0 | E152: 0 | G152: 0 | J152: =D152*G152 -> 0
D153: Custo total de atividades auxiliares | J153: =SUM(J151:J152) -> 0
H154: Subtotal | J154: =J141+J149+J153 -> 547.642223
B155: E - TEMPO FIXO | D155: Código | E155: Quantidade | F155: Unidade | H155: Custo Unitário | I155: Custo Unitário
B156: - | C156: 0 | D156: - | E156: 0 | F156: t | H156: 0 | J156: =ROUNDDOWN(E156*H156,4) -> 0
B157: - | C157: 0 | D157: - | E157: 0 | F157: t | H157: 0 | J157: =ROUNDDOWN(E157*H157,4) -> 0
D158: Custo unitário total de tempo fixo | J158: =SUM(J156:J157) -> 0
B159: F - MOMENTO DE TRANSPORTE | D159: Quantidade | E159: Unidade | F159: DMT | J159: Custo Unitário
F160: LN | G160: RP | H160: P
B161: - | C161: 0 | D161: 0 | E161: tkm
B162: - | C162: 0 | D162: 0 | E162: tkm
D163: Custo unitário total de transporte
F164: Custo unitário direto total | J164: =TRUNC(J154+J158,2) -> 547.64
B165: Obs.
A167: =A126+1 -> 5 | B167: 1ª/GRD | K167: =J211 -> 4264.15
B168: OBRA: | C168: PAVIMENTAÇÃO ASFÁLTICA EM CBUQ DE VIAS EM COMUNIDADES RURAIS (COMUNIDADE MARIA PRETA, COMUNIDADE TIRIRICAL E DISTRITO DE SÃO NORBERTO - ENGENHEIRO NAVARRO / MG)
B169: Custo Unitário de Referência | E169: Minas Gerais
E170: Abril/2025 | H170: Produção da equipe | I170: 1 | J170: =VLOOKUP(A167,ORÇAMENTO!$A$11:$L$43,7,1) -> MÊS
B171: CPU.4 | C171: VEÍCULO PARA A FISCALIZAÇÃO, MÁXIMO 02 ANOS DE USO OU 50.000KM, PREFERENCIALMENTE NA COR BRANCA, COM IDENTIFICAÇÃO CONFORME ESPECIFICAÇÕES DA CODEVASF, INCLUSIVE COMBUSTÍVEL, MANUTENÇÃO, SEGURO E IMPOSTOS - CONFORME ESPECIFICAÇÕES | I171: Valores em reais (R$)
B172: A - EQUIPAMENTOS | D172: Quantidade | E172: Utilização | G172: Custo Horário | J172: Custo
E173: Operativa | F173: Improdutiva | G173: Produtivo | H173: Improdutivo | J173: Horário Total
B174: - | C174: 0 | G174: 0 | H174: 0 | J174: =D174*(E174*G174+F174*H174) -> 0
B175: - | C175: 0 | G175: 0 | H175: 0 | J175: =D175*(E175*G175+F175*H175) -> 0
H176: Custo horário total de equipamentos | J176: =SUM(J174:J175) -> 0
B177: B - MÃO DE OBRA | D177: Quantidade | E177: Unidade | G177: Custo Horário | H177: Custo Horário Total
B178: - | C178: 0 | E178: 0 | G178: 0 | J178: =D178*G178 -> 0
B179: - | C179: 0 | E179: 0 | G179: 0 | J179: =D179*G179 -> 0
D180: Custo horário total de mão de obra | J180: =SUM(J178:J179) -> 0
D181: Custo horário total de execução | J181: =J176+J180 -> 0
D182: Custo unitário de execução | J182: =J181/I170 -> 0
H183: Custo do FIC | J183: -
H184: Custo do FIT | J184: -
B185: C - MATERIAL | D185: Quantidade | E185: Unidade | G185: Preço Unitário | H185: Custo Unitário
B186: - | C186: 0 | E186: - | G186: 0 | J186: =D186*G186 -> 0
B187: - | C187: 0 | E187: - | G187: 0 | J187: =D187*G187 -> 0
D188: Custo unitário total de material | J188: =SUM(J186:J187) -> 0
B189: D - ATIVIDADES AUXILIARES | D189: Quantidade | E189: Unidade | G189: Custo Unitário | H189: Custo Unitário
B190: - | C190: Depreciação | D190: 1 | E190: vb | G190: 692.6666667 | J190: =D190*G190 -> 692.6666667
B191: - | C191: Oportunidade de Capital | D191: 1 | E191: vb | G191: 510.84 | J191: =D191*G191 -> 510.84
B192: - | C192: Impostos e Licenciamento | D192: 1 | E192: vb | G192: 346.33 | J192: 346.33
B193: - | C193: Seguro Total | D193: 1 | E193: vb | G193: 281.58 | J193: 281.58
B194: - | C194: Combustível | D194: 1 | E194: vb | G194: 1287.86 | J194: 1287.86
B195: - | C195: Manutenções Preventivas | D195: 1 | E195: vb | G195: 254.02 | J195: 254.02
B196: - | C196: Limpeza | D196: 1 | E196: vb | G196: 100 | J196: 100
B197: - | C197: Pneus | D197: 1 | E197: vb | G197: 115.18 | J197: 115.18
B198: - | C198: Peças | D198: 1 | E198: vb | G198: 77.22 | J198: 77.22
B199: - | C199: Manutenção Corretiva (%) | D199: 1 | E199: vb | G199: 598.46 | J199: 598.46
D200: Custo total de atividades auxiliares | J200: =SUM(J190:J199) -> 4264.156667
H201: Subtotal | J201: =J182+J188+J200 -> 4264.156667
B202: E - TEMPO FIXO | D202: Código | E202: Quantidade | F202: Unidade | H202: Custo Unitário | I202: Custo Unitário
B203: - | C203: 0 | D203: - | E203: 0 | F203: t | H203: 0 | J203: =ROUNDDOWN(E203*H203,4) -> 0
B204: - | C204: 0 | D204: - | E204: 0 | F204: t | H204: 0 | J204: =ROUNDDOWN(E204*H204,4) -> 0
... 812 more rows

Sheet CPU-FORNEC
A1: 1 | B1: CODEVASF | E1: COMPOSIÇÃO DE PREÇO UNITÁRIO | I1: =H24 -> 0 | J1: =H26 -> 0 | K1: BDI CALCULADO: | M1: =ORÇAMENTO!L7 -> 15
B2: OBRA: | C2: PAVIMENTAÇÃO ASFÁLTICA EM CBUQ DE VIAS EM COMUNIDADES RURAIS (COMUNIDADE MARIA PRETA, COMUNIDADE TIRIRICAL E DISTRITO DE SÃO NORBERTO - ENGENHEIRO NAVARRO / MG) | G2: DATA: | H2: =ORÇAMENTO!C7 -> SETEMBRO / 2025 | K2: BDI DIFERENCIADO: | M2: ='BDI FORN'!D31/100 -> 0.15
B3: SERVIÇO: | C3: CPU.1 | E3: Referência: | F3: CODEVASF | G3: UNIDADE: | H3: =VLOOKUP(A1,ORÇAMENTO!A12:L32,5) -> MOBILIZAÇÃO E DESMOBILIZAÇÃO
B5: TIPO ITEM | C5: CODIGO ITEM | D5: DESCRIÇÃO ITEM | E5: UNIDADE ITEM | F5: COEFICIENTE | G5: PRECO UNITARIO | H5: CUSTO TOTAL | J5: distancia = | K5: 90 | L5: B.DESPACHO
B6: EQUIPAMENTOS | J6: Pá carregadeira | M6: 10.1 | N6: ton
C7: E9001 | D7: E9001 | E7: E9001 | G7: E9001
B10: MÃO DE OBRA
B14: MATERIAIS
H17: =ROUNDDOWN(F17*G17,2) -> 0 | J17: Motoniveladora | M17: 12.47 | N17: ton
B18: ATIVIDADES AUXILIARES | J18: Trator de pneus | M18: 2.8 | N18: ton
H19: =ROUNDDOWN(F19*G19,2) -> 0
H20: 0
H21: 0
H22: =ROUNDDOWN(F22*G22,2) -> 0 | J22: Rolo Compactador | M22: 15.33 | N22: ton
B23: PRODUÇÃO DA EQUIPE | E23: 1 | F23: CUSTO | H23: =SUM(H6:H22) -> 0 | J23: Grade de disco | M23: 1 | N23: ton
B24: TOTAL | H24: =H23/E23 -> 0 | I24: OK | J24: RETROESCAVADEIRA | M24: 6.67 | N24: ton
B25: BDI % | H25: =1+$M$1 -> 16
B26: TOTAL DO SERVIÇO - R$ | H26: =ROUND(H24*H25,2) -> 0
A28: F1 | B28: CODEVASF | E28: COMPOSIÇÃO DE PREÇO UNITÁRIO | I28: =H35 -> 2732.37 | J28: =H37 -> 3142.23
B29: OBRA: | C29: PAVIMENTAÇÃO ASFÁLTICA EM CBUQ DE VIAS EM COMUNIDADES RURAIS (COMUNIDADE MARIA PRETA, COMUNIDADE TIRIRICAL E DISTRITO DE SÃO NORBERTO - ENGENHEIRO NAVARRO / MG) | G29: DATA: | H29: =$H$2 -> SETEMBRO / 2025
B30: SERVIÇO: | C30: AQUISIÇÃO DE EMULSÃO ASFÁLTICA PARA IMPRIMAÇÃO (EAI) - EXCLUSIVE TRANSPORTE | E30: Referência: | F30: CPU.5 | G30: UNIDADE: | H30: =VLOOKUP(A28,ORÇAMENTO!$A$12:$L$43,7) -> T
B32: TIPO ITEM | C32: CODIGO ITEM | D32: DESCRIÇÃO ITEM | E32: UNIDADE ITEM | F32: COEFICIENTE | G32: PRECO UNITARIO | H32: CUSTO TOTAL
B33: INSUMO | C33: ANP | D33: EMULSÃO ASFÁLTICA PARA SERVIÇO DE IMPRIMAÇÃO (MEMÓRIA EM ANEXO) | E33: T | F33: 1 | G33: 2732.374487 | H33: =ROUNDDOWN(F33*G33,2) -> 2732.37
B34: PRODUÇÃO DA EQUIPE | E34: 1 | F34: CUSTO | H34: =SUM(H33:H33) -> 2732.37
B35: TOTAL | H35: =H34/E34 -> 2732.37
B36: BDI % | H36: =1+$M$2 -> 1.15
B37: TOTAL DO SERVIÇO - R$ | H37: =ROUND(H35*H36,2) -> 3142.23 | I37: OK
A39: F2 | B39: CODEVASF | E39: COMPOSIÇÃO DE PREÇO UNITÁRIO | I39: =H46 -> 341.88 | J39: =H48 -> 393.16
B40: OBRA: | C40: PAVIMENTAÇÃO ASFÁLTICA EM CBUQ DE VIAS EM COMUNIDADES RURAIS (COMUNIDADE MARIA PRETA, COMUNIDADE TIRIRICAL E DISTRITO DE SÃO NORBERTO - ENGENHEIRO NAVARRO / MG) | G40: DATA: | H40: =$H$2 -> SETEMBRO / 2025
B41: SERVIÇO: | C41: TRANSPORTE DE EMULSÃO ASFÁLTICA PARA IMPRIMAÇÃO (EAI) | E41: Referência: | F41: CPU.6 | G41: UNIDADE: | H41: =VLOOKUP(A39,ORÇAMENTO!$A$12:$L$43,7) -> T
B43: TIPO ITEM | C43: CODIGO ITEM | D43: DESCRIÇÃO ITEM | E43: UNIDADE ITEM | F43: COEFICIENTE | G43: PRECO UNITARIO | H43: CUSTO TOTAL
B44: INSUMO | C44: - | D44: TRANSPORTE DE EMULSÃO ASFÁLTICA PARA IMPRIMAÇÃO (EAI), INCLUINDO CUSTO TOTAL DO TRANSPORTE (COMBUSTÍVEL, PEDÁGIOS, ETC.) E ICMS - MEMÓRIA ANEXA | E44: T | F44: 1 | G44: 341.8815789 | H44: =ROUNDDOWN(F44*G44,2) -> 341.88
B45: PRODUÇÃO DA EQUIPE | E45: 1 | F45: CUSTO | H45: =SUM(H44:H44) -> 341.88
B46: TOTAL | H46: =H45/E45 -> 341.88
B47: BDI % | H47: =1+$M$2 -> 1.15
B48: TOTAL DO SERVIÇO - R$ | H48: =ROUND(H46*H47,2) -> 393.16 | I48: OK
A50: F3 | B50: CODEVASF | E50: COMPOSIÇÃO DE PREÇO UNITÁRIO | I50: =H57 -> 3375.89 | J50: =H59 -> 3882.27
B51: OBRA: | C51: PAVIMENTAÇÃO ASFÁLTICA EM CBUQ DE VIAS EM COMUNIDADES RURAIS (COMUNIDADE MARIA PRETA, COMUNIDADE TIRIRICAL E DISTRITO DE SÃO NORBERTO - ENGENHEIRO NAVARRO / MG) | G51: DATA: | H51: =$H$2 -> SETEMBRO / 2025
B52: SERVIÇO: | C52: AQUISIÇÃO DE EMULSAO ASFALTICA CATIONICA RR-1C - EXCLUSIVE TRANSPORTE | E52: Referência: | F52: CPU.7 | G52: UNIDADE: | H52: =VLOOKUP(A50,ORÇAMENTO!$A$12:$L$43,7) -> T
B54: TIPO ITEM | C54: CODIGO ITEM | D54: DESCRIÇÃO ITEM | E54: UNIDADE ITEM | F54: COEFICIENTE | G54: PRECO UNITARIO | H54: CUSTO TOTAL
B55: INSUMO | C55: ANP | D55: EMULSÃO ASFÁLTICA CATIÔNICA RR-1C(MEMÓRIA EM ANEXO) | E55: T | F55: 1 | G55: 3375.897075 | H55: =ROUNDDOWN(F55*G55,2) -> 3375.89
B56: PRODUÇÃO DA EQUIPE | E56: 1 | F56: CUSTO | H56: =SUM(H55:H55) -> 3375.89
B57: TOTAL | H57: =H56/E56 -> 3375.89 | I57: OK
B58: BDI % | H58: =1+$M$2 -> 1.15
B59: TOTAL DO SERVIÇO - R$ | H59: =ROUND(H57*H58,2) -> 3882.27
A61: F4 | B61: CODEVASF | E61: COMPOSIÇÃO DE PREÇO UNITÁRIO | I61: =H68 -> 435.8 | J61: =H70 -> 501.17
B62: OBRA: | C62: PAVIMENTAÇÃO ASFÁLTICA EM CBUQ DE VIAS EM COMUNIDADES RURAIS (COMUNIDADE MARIA PRETA, COMUNIDADE TIRIRICAL E DISTRITO DE SÃO NORBERTO - ENGENHEIRO NAVARRO / MG) | G62: DATA: | H62: =$H$2 -> SETEMBRO / 2025
B63: SERVIÇO: | C63: TRANSPORTE DE EMULSÃO ASFÁLTICA CATIONICA RR-1C | E63: Referência: | F63: CPU.8 | G63: UNIDADE: | H63: =VLOOKUP(A61,ORÇAMENTO!$A$12:$L$43,7) -> T
B65: TIPO ITEM | C65: CODIGO ITEM | D65: DESCRIÇÃO ITEM | E65: UNIDADE ITEM | F65: COEFICIENTE | G65: PRECO UNITARIO | H65: CUSTO TOTAL
B66: INSUMO | C66: - | D66: TRANSPORTE DE EMULSÃO ASFÁLTICA CATIONICA TIPO RR-1C, INCLUINDO CUSTO TOTAL DO TRANSPORTE (COMBUSTÍVEL, PEDÁGIOS, ETC.) E ICMS - MEMÓRIA ANEXA | E66: T | F66: 1 | G66: 435.8022222 | H66: =ROUNDDOWN(F66*G66,2) -> 435.8
B67: PRODUÇÃO DA EQUIPE | E67: 1 | F67: CUSTO | H67: =SUM(H66:H66) -> 435.8
B68: TOTAL | H68: =H67/E67 -> 435.8 | I68: OK
B69: BDI % | H69: =1+$M$2 -> 1.15
B70: TOTAL DO SERVIÇO - R$ | H70: =ROUND(H68*H69,2) -> 501.17
A72: F5 | B72: CODEVASF | E72: COMPOSIÇÃO DE PREÇO UNITÁRIO | I72: =H79 -> 4511.6 | J72: =H81 -> 5188.34
B73: OBRA: | C73: PAVIMENTAÇÃO ASFÁLTICA EM CBUQ DE VIAS EM COMUNIDADES RURAIS (COMUNIDADE MARIA PRETA, COMUNIDADE TIRIRICAL E DISTRITO DE SÃO NORBERTO - ENGENHEIRO NAVARRO / MG) | G73: DATA: | H73: =$H$2 -> SETEMBRO / 2025
B74: SERVIÇO: | C74: AQUISIÇÃO DE CONCRETO ASFÁLTICO DE PETRÓLEO - CAP 50/70 - EXCLUSIVE TRANSPORTE | E74: Referência: | F74: CPU.9 | G74: UNIDADE: | H74: =VLOOKUP(A72,ORÇAMENTO!$A$12:$L$43,7) -> T
B76: TIPO ITEM | C76: CODIGO ITEM | D76: DESCRIÇÃO ITEM | E76: UNIDADE ITEM | F76: COEFICIENTE | G76: PRECO UNITARIO | H76: CUSTO TOTAL
B77: INSUMO | C77: 1518 | D77: CIMENTOS ASFÁLTICO DE PETRÓLEO TIPO CAP 50/70 (MEMÓRIA EM ANEXO) | E77: T | F77: 1 | G77: 4511.603148 | H77: =ROUNDDOWN(F77*G77,2) -> 4511.6
B78: PRODUÇÃO DA EQUIPE | E78: 1 | F78: CUSTO | H78: =SUM(H77:H77) -> 4511.6
B79: TOTAL | H79: =H78/E78 -> 4511.6
B80: BDI % | H80: =1+$M$2 -> 1.15
B81: TOTAL DO SERVIÇO - R$ | H81: =ROUND(H79*H80,2) -> 5188.34
A83: F6 | B83: CODEVASF | E83: COMPOSIÇÃO DE PREÇO UNITÁRIO | I83: =H90 -> 690.07 | J83: =H92 -> 793.58
B84: OBRA: | C84: PAVIMENTAÇÃO ASFÁLTICA EM CBUQ DE VIAS EM COMUNIDADES RURAIS (COMUNIDADE MARIA PRETA, COMUNIDADE TIRIRICAL E DISTRITO DE SÃO NORBERTO - ENGENHEIRO NAVARRO / MG) | G84: DATA: | H84: =$H$2 -> SETEMBRO / 2025
B85: SERVIÇO: | C85: TRANSPORTE DE CONCRETO ASFÁLTICO DE PETRÓLEO - CAP 50/70 | E85: Referência: | F85: CPU.10 | G85: UNIDADE: | H85: =VLOOKUP(A83,ORÇAMENTO!$A$12:$L$43,7) -> T
B87: TIPO ITEM | C87: CODIGO ITEM | D87: DESCRIÇÃO ITEM | E87: UNIDADE ITEM | F87: COEFICIENTE | G87: PRECO UNITARIO | H87: CUSTO TOTAL
B88: INSUMO | C88: - | D88: TRANSPORTE DE CIMENTO ASFÁLTICO DE PETRÓLEO TIPO CAP 50-70, INCLUINDO CUSTO TOTAL DO TRANSPORTE (COMBUSTÍVEL, PEDÁGIOS, ETC.) E ICMS - MEMÓRIA ANEXA | E88: T | F88: 1 | G88: 690.0766667 | H88: =ROUNDDOWN(F88*G88,2) -> 690.07
B89: PRODUÇÃO DA EQUIPE | E89: 1 | F89: CUSTO | H89: =SUM(H88:H88) -> 690.07
B90: TOTAL | H90: =H89/E89 -> 690.07
B91: BDI % | H91: =1+$M$2 -> 1.15
B92: TOTAL DO SERVIÇO - R$ | H92: =ROUND(H90*H91,2) -> 793.58

Sheet AUX-VEIC.
B2: CÁLCULO DO CUSTO POR MÊS DE VEÍCULOS
B3: Veículo: Polo TSI, Onix Turbo, Argo 1.3, HB-20 Turbo | D3: Data: | E3: 2025-07-28
B4: DADOS ELEMENTARES DO VEÍCULO
B5: Dados Básicos | C5: Preço (R$) | D5: Quantidade | E5: Vida Útil
B6: Quilometragem média mensal | D6: 3000
B7: Valor de Aquisição (VA) | C7: 103900
B8: Taxa de Juros (i)% | D8: 14.75
B9: IPVA e Seguro Obrigatório (4%) | C9: =0.04*C7 -> 4156
B10: Lavagem | C10: 50 | D10: 2
B11: Pneus | C11: 479.9 | D11: 4 | E11: 50000
B12: Combustível | C12: 6.01 | D12: 14
B13: Óleo Lubrificante + Filtros (revisão) | C13: =4*(188.59+213.69+186.16+283.83+186.16)/5 -> 846.744 | D13: 1 | E13: 10000
B14: Seguro Total Anual | C14: 3378.94
B15: Jogo de Amortecedores | C15: 1287 | E15: 50000
B16: Coeficiente de Manutenção | D16: 4.8e-06
B17: Motorista | C17: =5284.47/1.7393 -> 3038.274018 | D17: 1
B18: CÁLCULO DO CUSTO POR MÊS
B19: DEPRECIAÇÃO | C19: D = (VA-0,60xVA) / 12 x 5 | E19: =(C7-(0.6*C7))/60 -> 692.6666667 | F19: =E19/E$30 -> 0.16243931
B20: JUROS | C20: J = (VA-0,60xVA) x i / 12 | E20: =ROUND(((C7-0.6*C7)*D8/100)/12,2) -> 510.84 | F20: 0.1197986003
B21: LICENCIAMENTO | C21: L = (IPVA=SEG.OBRIG.)/12 | E21: =ROUND(C9/12,2) -> 346.33 | F21: 0.08121887329
B22: SEGURO TOTAL | C22: ST = SEGURO ANUAL/12 | E22: =ROUND(C14/12,2) -> 281.58 | F22: 0.06603415916
B23: COMBUSTÍVEL | C23: OD = (Comb./Consu)x Km.mês | E23: =ROUND(C12/D12*D6,2) -> 1287.86 | F23: 0.3020198601
B24: ÓLEO LUBRIFICANTE | C24: OL = ((Ol. X Quant)/Vida Útil)xKm.mês) | E24: =ROUND(((C13*D13)/E13)*D6,2) -> 254.02 | F24: 0.05957098199
B25: LAVAGEM | C25: LL = Preço Lavagem x Quantidade | E25: =ROUND(C10*D10,2) -> 100 | F25: 0.02345129596
B26: PNEUS | C26: P = ((P. PneusxQuant)/Vida Útil)xkm.mês) | E26: =ROUND(((C11*D11)/E11)*D6,2) -> 115.18 | F26: 0.02701120268
B27: AMORTECEDORES | C27: AM = (P. Amort/Vida Útil)xkm.mês | E27: =ROUND(C15/E15*D6,2) -> 77.22 | F27: 0.01810909074
B28: MANUTENÇÃO | C28: M = (VA-VPxK)xkm.mês | E28: =ROUND((C7-0.6*C7)*D16*D6,2) -> 598.46 | F28: 0.1403466258
B29: MOTORISTA | C29: MOT = SALÁRIO+LEIS SOCIAIS | E29: =ROUND((C17+C17*0.7368),2) -> 5276.87
B30: CUSTO POR MÊS | C30: SEM MOTORISTA | E30: =SUM(E19:E28) -> 4264.156667 | F30: =E30-E23 -> 2976.296667
C31: COM MOTORISTA | E31: =E30+E29 -> 9541.026667

Sheet BDI SERV
B1: DETALHAMENTO DO BDI - SERVIÇOS
B4: Item | C4: Descrição dos Serviços | D4: % - PV | E4: % - CD
B6: 1 | C6: ADMINISTRAÇÃO CENTRAL | E6: =SUM(E7:E9) -> 4.01
B7: 1.1 | C7: ESCRITÓRIO CENTRAL | E7: 4.01
B8: 1.2 | C8: VIAGENS
B9: 1.3 | C9: OUTROS
B11: 2 | C11: IMPOSTOS E TAXAS | D11: =SUM(D12:D15) -> 8.65 | E11: =SUM(E12:E15) -> 0
B12: 2.1 | C12: ISS - Proposta | D12: =D34*100 -> 5
B13: 2.2 | C13: PIS | D13: 0.65
B14: 2.3 | C14: Cofins | D14: 3
B15: 2.4 | C15: Contribuição Previdenciaria (CPRB)
B17: 3 | C17: TAXA DE RISCO | E17: =SUM(E18:E20) -> 0.96
B18: 3.1 | C18: SEGURO | E18: 0.2
B19: 3.2 | C19: RISCO | E19: 0.56
B20: 3.3 | C20: GARANTIA | E20: 0.2
B22: 4 | C22: DESPESAS FINANCEIRAS | E22: 1.11
B24: 5 | C24: LUCRO | E24: 7.3
B26: BDI APRESENTADO: | E26: =IF($D$41=$C$43,$D$43,IF($D$41=$C$44,$D$44,IF($D$41=$C$44,$D$44,IF($D$41=$C$45,$D$45,0)))) -> 24.67
C28: Legislação Municipal: | D28: Código Tributário
C29: Município: | D29: Engenheiro Navarro-MG
C30: Alíquota ISSQN: | D30: 0.05 | E30: Município
C31: Base de Cálculo: | D31: 1 | E31: Art. 4º - Parágrafo Único
C32: Valor Serviço: | D32: 843877.81
C33: Dedução - Material (estimado):
C34: ISSQN BDI: | D34: =IF(D32="",0,ROUND(IF(D31=D49,((1-(D33/D32))*D30),D30*D31),4)) -> 0.05 | E34: (*)
A36: Acórdão nº 2.622/2013 - TCU Plenário
A37: BDI = ARRED((((((1+(AC+TR)/100)*(1+DF/100)*(1+L/100))/(1-IMP/100))-1)*100);2)
B39: (*) É obrigação da licitante a verificação da Legislação Tributária vigente no município, bem como o cálculo dos valores totais de serviços e materiais estimados, para apresentação de sua proposta.
C41: Forma de Cálculo do BDI: | D41: BDI - Acórdão nº 2.622/2013 - TCU
C43: BDI - Digitado | D43: =ROUND(E6+E11+E17+E22+E24,2) -> 13.38
C44: BDI - Calculado | D44: =ROUND((((1+(E6/100+E22/100+E17/100))/(1-(D11/100+E24/100)))-1)*100,2) -> 26.21
C45: BDI - Acórdão nº 2.622/2013 - TCU | D45: =ROUND((((((1+(E6+E17)/100)*(1+E22/100)*(1+E24/100))/(1-D11/100))-1)*100),2) -> 24.67
D49: Dedução - Material | E49: Município
D50: 0.1 | E50: Simples Nacional
D51: 0.2 | E51: Municípios Indefinidos
D52: 0.3
D53: 0.4
D54: 0.5
D55: 0.6
D56: 0.7
D57: 0.8
D58: 0.9
D59: 1
D60: =E31 -> Art. 4º - Parágrafo Único

Sheet BDI FORN
B1: DETALHAMENTO DO BDI - FORNECIMENTO (MATERIAL ASFÁLTICO)
B4: Item | C4: Descrição dos Serviços | D4: % | E4: %
D5: PV | E5: CD
B7: 1 | C7: ADMINISTRAÇÃO CENTRAL | E7: 3.45
B8: 1.1 | C8: ESCRITÓRIO CENTRAL
B9: 1.2 | C9: VIAGENS
B10: 1.3 | C10: OUTROS
B12: 2 | C12: IMPOSTOS E TAXAS | D12: =SUM(D13:D16) -> 3.65 | E12: =SUM(E13:E16) -> 4.56
B13: 2.1 | C13: ISS (*) | E13: =ROUND(D13*1.2515,2) -> 0
B14: 2.2 | C14: PIS | D14: 0.65 | E14: =ROUND(D14*1.2515,2) -> 0.81
B15: 2.3 | C15: Cofins | D15: 3 | E15: =ROUND(D15*1.2515,2) -> 3.75
B16: 2.4 | C16: CONTRIBUIÇÃO PREVIDENCIÁRIA SOBRE A RENDA BRUTA | D16: 0 | E16: =ROUND(D16*1.2515,2) -> 0
B18: 3 | C18: TAXA DE RISCO | E18: =SUM(E19:E22) -> 1.08
B19: 3.1 | C19: SEGURO | E19: 0.24
B20: 3.2 | C20: RISCO | E20: 0.6
B21: 3.3 | C21: GARANTIA | E21: 0.24
B23: 4 | C23: DESPESAS FINANCEIRAS | E23: 0.85
B25: 5 | C25: LUCRO | E25: 5.11
C27: BDI - CALCULADO | E27: =ROUND((((1+(E7+E18)/100)*(1+E23/100)*(1+E25/100)/(1-D12/100)-1)*100),2) -> 15
A29: BDI = ((1+((AC+S+R+G)/100))x(1+DF/100)x(1+L/100)/(1-I/100)-1)*100
B31: BDI (CALCULADO): | D31: =ROUND((((1+((E7+E18)/100))*(1+E23/100)*(1+E25/100))/(1-D12/100)-1)*100,2) -> 15 | E31: %
A37: BDI EM CONFORMIDADE COM OS ACÓRDÃOS Nº 2369/2011 e ACÓRDÃO Nº 2.622/2013 - TCU - PLENÁRIO

Sheet CRONOGRAMA
B1: CRONOGRAMA FÍSICO-FINANCEIRO
B2: OBRA: | C2: =ORÇAMENTO!C5 -> PAVIMENTAÇÃO ASFÁLTICA EM CBUQ DE VIAS EM COMUNIDADES RURAIS (COMUNIDADE MARIA PRETA, COMUNIDADE TIRIRICAL E DISTRITO DE SÃO NORBERTO - ENGENHEIRO NAVARRO / MG) | F2: VALOR: | G2: =ORÇAMENTO!L43 -> 1428594.29
F3: PRAZO: | G3: 180 DIAS
B5: ITEM | C5: ETAPAS/DESCRIÇAO | D5: FISICO/ FINANCEIRO | E5: TOTAL ETAPAS | F5: MÊS 1 | G5: MÊS 2 | H5: MÊS 3 | I5: MÊS 4 | J5: MÊS 5 | K5: MÊS 6 | L5: TOTAL
A6: A | B6: =VLOOKUP(A6,ORÇAMENTO!$A$11:$L$43,2) -> 1 | C6: =VLOOKUP(A6,ORÇAMENTO!$A$11:$L$43,5) -> SERVIÇOS PRELIMINARES | D6: FISICO | E6: =ROUND(E7/$G$2,4) -> 0.1545 | F6: 0.25 | G6: 0.15 | H6: 0.15 | I6: 0.15 | J6: 0.15 | K6: 0.15 | L6: =SUM(F6:K6) -> 1
D7: FINANCEIRO | E7: =ORÇAMENTO!L11 -> 220664 | F7: =ROUND($E$7*F6,2) -> 55166 | G7: =ROUND($E$7*G6,2) -> 33099.6 | H7: =ROUND($E$7*H6,2) -> 33099.6 | I7: =ROUND($E$7*I6,2) -> 33099.6 | J7: 33099.6 | K7: 33099.6 | L7: =SUM(F7:K7) -> 220664
A8: B | B8: =VLOOKUP(A8,ORÇAMENTO!$A$11:$L$43,2) -> 2 | C8: =VLOOKUP(A8,ORÇAMENTO!$A$11:$L$43,5) -> TERRAPLANAGEM E PAVIMENTAÇÃO | D8: FISICO | E8: =ROUND(E9/$G$2,4) -> 0.2184 | F8: 0.15 | G8: 0.25 | H8: 0.25 | I8: 0.25 | J8: 0.1 | L8: =SUM(F8:K8) -> 1
D9: FINANCEIRO | E9: =ORÇAMENTO!L18 -> 311973.9 | F9: =ROUND($E$9*F8,2) -> 46796.09 | G9: =ROUND($E$9*G8,2) -> 77993.48 | H9: =ROUND($E$9*H8,2) -> 77993.48 | I9: =ROUND($E$9*I8,2) -> 77993.48 | J9: 31197.39 | K9: 0 | L9: =SUM(F9:K9) -> 311973.92
A10: C | B10: =VLOOKUP(A10,ORÇAMENTO!$A$11:$L$43,2) -> 3 | C10: =VLOOKUP(A10,ORÇAMENTO!$A$11:$L$43,5) -> TRANSPORTE DE MATERIAIS | D10: FISICO | E10: =ROUND(E11/$G$2,4) -> 0.1464 | F10: 0.15 | G10: 0.25 | H10: 0.25 | I10: 0.25 | J10: 0.1 | L10: =SUM(F10:K10) -> 1
D11: FINANCEIRO | E11: =ORÇAMENTO!L25 -> 209160 | F11: =ROUND($E$11*F10,2) -> 31374 | G11: =ROUND($E$11*G10,2) -> 52290 | H11: =ROUND($E$11*H10,2) -> 52290 | I11: =ROUND($E$11*I10,2) -> 52290 | J11: 20916 | K11: 0 | L11: =SUM(F11:K11)-0.04 -> 209159.96
A12: E | B12: =VLOOKUP(A12,ORÇAMENTO!$A$11:$L$43,2) -> 4 | C12: =VLOOKUP(A12,ORÇAMENTO!$A$11:$L$43,5) -> DRENAGEM E OBRAS COMPLEMENTARES | D12: FISICO | E12: =ROUND(E13/$G$2,4) -> 0.2162 | G12: 0.2 | H12: 0.2 | I12: 0.2 | J12: 0.2 | K12: 0.2 | L12: =SUM(F12:K12) -> 1
D13: FINANCEIRO | E13: =ORÇAMENTO!L31 -> 308821.45 | F13: =ROUND($E$13*F12,2) -> 0 | G13: =ROUND($E$13*G12,2) -> 61764.29 | H13: =ROUND($E$13*H12,2) -> 61764.29 | I13: =ROUND($E$13*I12,2) -> 61764.29 | J13: 61764.29 | K13: 61764.29 | L13: =SUM(F13:K13)-0.02 -> 308821.43
A14: F | B14: =VLOOKUP(A14,ORÇAMENTO!$A$11:$L$43,2) -> 5 | C14: =VLOOKUP(A14,ORÇAMENTO!$A$11:$L$43,5) -> FORNECIMENTOS - MATERIAL ASFÁLTICO (BDI DIFERENCIADO) | D14: FISICO | E14: =ROUND(E15/$G$2,4) -> 0.2646 | H14: 0.25 | I14: 0.5 | J14: 0.25 | L14: =SUM(F14:K14) -> 1
D15: FINANCEIRO | E15: =ORÇAMENTO!L36 -> 377974.94 | F15: =ROUND($E$15*F14,2) -> 0 | G15: 0 | H15: 94493.74 | I15: 188987.47 | J15: 94493.74 | K15: 0 | L15: =SUM(F15:K15)-0.02 -> 377974.93
B16: TOTAL | D16: FISICO | E16: =SUM(F16:K16) -> 1.000000021 | F16: =F17/$E$17 -> 0.09333376938 | G16: =G17/$E$17 -> 0.1576006369 | H16: =H17/$E$17 -> 0.2237451964 | I16: =I17/$E$17 -> 0.2898897489 | J16: 0.1690270091 | K16: 0.06640366034 | L16: =SUM(F16:K16) -> 1.000000021
D17: FINANCEIRO | E17: =E11+E9+E7+E15+E13 -> 1428594.29 | F17: =F11+F9+F7+F15+F13 -> 133336.09 | G17: =G11+G9+G7+G15+G13 -> 225147.37 | H17: 319641.11 | I17: 414134.84 | J17: 241471.02 | K17: 94863.89 | L17: =SUM(F17:K17)-0.03 -> 1428594.29
B19: OBSERVAÇÕES:
